Cogmind - Beta 10.2 @@@ ROGUE MODE // 2021.08.17 @ 16:40:26 Player: darlorth Result: Destroyed self via exploding Fusion Modulator Performance ------------- Evolutions (0) 0 Regions Visited (1) 200 Robots Destroyed (13) 65 Value Destroyed (280) 280 Prototype IDs (0) 0 Alien Tech Used (0) 0 Bonus (0) 0 TOTAL SCORE: 545 Bonus ------- None Cogmind --------- Core Integrity 0/250 Matter 300/300 Energy 100/100 System Corruption 0% Temperature Cool (12) Movement Rolling (80) Location -10/Materials Parts ------- > --- POWER (1) -------- (None) > --- PROPULSION (2) --- Wheel > --- UTILITY (2) ------ Small Storage Unit Utility Shielding > --- WEAPON (2) ------- Light Assault Rifle > --- INVENTORY (6) ---- Light Nuclear Core Heat Sink Large Battery (300) High-capacity Matter Pod (149) Peak State ------------ > --- POWER ------------ Light Ion Engine > --- PROPULSION ------- Light Treads Wheel > --- UTILITY ---------- Small Storage Unit Utility Shielding > --- WEAPON ----------- Assault Rifle Light Assault Rifle > --- INVENTORY -------- Ion Engine Light Nuclear Core Light Treads Wheel Large Battery High-capacity Matter Pod [Rating: 7] Favorites ----------- Power Light Ion Engine Engine Light Ion Engine Propulsion Light Treads Treads Light Treads Wheel Wheel Utility Small Storage Unit Storage Small Storage Unit Protection Utility Shielding Weapon Light Assault Rifle Energy Gun Small Laser Ballistic Gun Light Assault Rifle Build | -11 -10 ------- Run | Scr Mat Slots Evolved . | . . Power . | . . Propulsion . | . . Utility . | . . Weapon . | . . Parts Attached 14 | 7 7 Power 2 | 1 1 Engine 2 | 1 1 Core . | . . Reactor . | . . Propulsion 5 | 3 2 Treads 3 | 2 1 Leg . | . . Wheel 2 | 1 1 Hover . | . . Flight . | . . Utility 2 | 1 1 Device . | . . Storage 1 | 1 . Processor . | . . Hackware . | . . Protection 1 | . 1 Artifact . | . . Weapon 5 | 2 3 Energy Gun 1 | 1 . Energy Cannon . | . . Ballistic Gun 4 | 1 3 Ballistic Cannon . | . . Launcher . | . . Special Weapon . | . . Impact Weapon . | . . Slashing Weapon . | . . Piercing Weapon . | . . Special Melee Weapon . | . . Unidentified Prototypes . | . . Parts Lost 7 | . 7 Power 2 | . 2 Propulsion 2 | . 2 Utility . | . . Weapon 3 | . 3 Highest Loss Streak 4 | . 4 Average Slot Usage (%) 77 | . 77 Engine 10 | . 10 Treads 13 | . 13 Wheel 5 | . 5 Storage 14 | . 14 Protection 11 | . 11 Ballistic Gun 22 | . 22 Naked Turns . | . . Heaviest Build 12 | 9 12 Greatest Support 40 | 40 40 Greatest Overweight (x) 3 | . 3 Average Overweight (x) . | . . Largest Inventory Capacity 6 | 6 6 Average Capacity 5 | 5 6 Most Carried 6 | 6 6 Average Carried 5 | 2 5 Final Capacity 6 | 6 6 Final Carried 4 | 4 4 Class Distribution -------------------- 100% | Mutant Dominant Class ---------------- Mutant | -10/Materials Resources | -11 -10 ----------- Run | Scr Mat Matter Collected 540 | 172 368 Remotely . | . . Salvage Created 409 | . 409 Parts 17 | . 17 Haulers Intercepted . | . . Recyclers Shooed 2 | . 2 Parts Field Recycled . | . . Retrieved Matter . | . . Parts Self-Destructed . | . . Prevented . | . . Kills | -11 -10 ------- Run | Scr Mat Combat Hostiles Destroyed 11 | . 11 Guns 11 | . 11 Classes Destroyed 4 | . 4 Worker 1 | . 1 Recycler 1 | . 1 Swarmer 6 | . 6 Grunt 5 | . 5 Best Kill Streak 5 | . 5 Combat Bots Only 3 | . 3 Max Kills in Single Turn 1 | . 1 Gunslinging . | . . Exploded . | . . Melee . | . . Uniques/NPCs Destroyed . | . . Combat | -11 -10 -------- Run | Scr Mat Damage Taken 1082 | . 1082 Core 338 | . 338 Absorbed by Shields . | . . Core Remaining (%) 100 | 100 . Volleys Fired 72 | . 72 Largest 2 | . 2 Hottest 40 | . 40 Shots Fired 96 | . 96 Gun 96 | . 96 Cannon . | . . Launcher . | . . Special . | . . Kinetic 96 | . 96 Thermal . | . . Explosive . | . . Electromagnetic . | . . Robot Hit Streak 11 | . 11 Robot Miss Streak 8 | . 8 Penetration Max . | . . Secondary Targets . | . . Shots Hit Robots 54 | . 54 Core Hits 27 | . 27 Critical Hits 1 | . 1 Critical Kills 1 | . 1 Critical Parts Destroyed . | . . Melee Attacks . | . . Impact . | . . Slashing . | . . Piercing . | . . Sneak Attacks . | . . Combat Hostiles . | . . Follow-up Attacks . | . . Damage Inflicted 464 | . 464 Guns 464 | . 464 Cannons . | . . Explosions . | . . Melee . | . . Ramming . | . . Kinetic 464 | . 464 Thermal . | . . Explosive . | . . Electromagnetic . | . . Impact . | . . Slashing . | . . Piercing . | . . Highest Corruption . | . . Average Corruption . | . . Corruption Purged . | . . Overload Shots . | . . Overflow Damage 86 | . 86 Projectiles . | . . Explosions 86 | . 86 Melee . | . . Knockbacks . | . . Impact . | . . Kinetic . | . . Secondary . | . . Self-Inflicted Damage 195 | . 195 Shots 2 | . 2 Rammed . | . . Targets Rammed . | . . Kicked . | . . Crushed . | . . Highest Temperature 18 | . 18 Average Temperature 7 | . 7 Received Heat Transfer 231 | . 231 Siege Activations . | . . Robots Corrupted . | . . Combat Hostiles . | . . Parts Fried . | . . Impact Corruptions . | . . Robots Melted . | . . Combat Hostiles . | . . Parts Melted . | . . Heat Transferred . | . . Parts Sabotaged . | . . Parts Stolen . | . . Parts Stripped . | . . Power Chain Reactions . | . . Missiles Intercepted . | . . Alert | -11 -10 ------- Run | Scr Mat Peak Influence 210 | . 210 Initial . | . . Average 50 | . 57 Maximum Alert Level 1 | . 1 Low Security (%) 95 | 100 94 Level 1 4 | . 5 Level 2 . | . . Level 3 . | . . Level 4 . | . . Level 5 . | . . High Security . | . . Max Security . | . . Squads Dispatched 2 | . 2 Investigation . | . . Extermination . | . . Reinforcement 2 | . 2 Assault . | . . Garrison . | . . Intercept . | . . Construction Impeded . | . . Haulers Reinforced . | . . Stealth | -11 -10 --------- Run | Scr Mat Distress Signals 1 | . 1 Communications Jammed . | . . Distress Signals . | . . Times Spotted 20 | . 20 Peak Tracking Total 6 | . 6 Tactical Retreats . | . . Traps | -11 -10 ------- Run | Scr Mat Traps Triggered 1 | . 1 Indirectly . | . . Trap Hack Attempts . | . . Triggered . | . . Disarmed . | . . Reprogrammed . | . . Reused . | . . Traps Extracted . | . . Installed . | . . Triggered . | . . Machines | -11 -10 ---------- Run | Scr Mat Machines Disabled 3 | . 3 Max in Single Turn 2 | . 2 Machines Sabotaged . | . . Garrisons Compromised . | . . Overloaded Fab Kills . | . . Fab Network Shutdowns . | . . Hacking | -11 -10 --------- Run | Scr Mat Machines Accessed 1 | . 1 Terminals . | . . Fabricators . | . . Repair Stations . | . . Recycling Units 1 | . 1 Scanalyzers . | . . Garrison Access . | . . Total Hacks 3 | . 3 Successful 2 | . 2 Failed 1 | . 1 Catastrophic . | . . Database Lockouts . | . . Manual . | . . Terminals . | . . Fabricators . | . . Repair Stations . | . . Recycling Units 3 | . 3 Scanalyzers . | . . Garrison Access . | . . Terminal Hacks . | . . Fabricator Hacks . | . . Repair Station Hacks . | . . Recycling Unit Hacks 2 | . 2 Retrieve Matter 1 | . 1 Retrieve Components 1 | . 1 Scanalyzer . | . . Garrison Access Hacks . | . . Unauthorized Hacks . | . . Terminals . | . . Fabricators . | . . Repair Stations . | . . Recycling Units . | . . Scanalyzers . | . . Garrison Access . | . . Data Cores Recovered . | . . Used . | . . Hacking Detections 1 | . 1 Full Trace Events . | . . Feedback Events . | . . Feedback Blocked . | . . Robot Schematics Acquired . | . . Robots Built . | . . Matter . | . . Time . | . . Total Robot Build Rating . | . . Part Schematics Acquired . | . . Parts Built . | . . Matter . | . . Time . | . . Total Part Build Rating . | . . Parts Repaired . | . . Time . | . . Parts Recycled . | . . Recycled Matter . | . . Retrieved Matter 52 | . 52 Retrieved Components 9 | . 9 Parts Scanalyzed . | . . Part Schematics Acquired . | . . Parts Damaged . | . . Bothacking | -11 -10 ------------ Run | Scr Mat Used RIF Installer . | . . Robots Hacked . | . . Non-combat . | . . Combat . | . . Robot Hacks Applied . | . . Relay Couplers Released . | . . Robots Rewired . | . . Allies Hacked . | . . Hacks Repelled . | . . Allies | -11 -10 -------- Run | Scr Mat Total Allies . | . . Largest Group . | . . Highest-Rated Group . | . . Highest-Rated Ally . | . . Total Orders . | . . Ally Attacks . | . . Total Damage . | . . Kills . | . . Allies Corrupted . | . . Allies Melted . | . . Intel | -11 -10 ------- Run | Scr Mat Robot Analysis Total . | . . Derelict Logs Recovered . | . . Drone Launches . | . . Drone Recoveries . | . . Exploration | -11 -10 ------------- Run | Scr Mat Turns Passed 692 | 84 608 Spaces Moved 386 | 54 332 Core 110 | 17 93 Treads 135 | 36 99 Legs . | . . Wheels 141 | 1 140 Hover . | . . Flight . | . . Fastest Speed 50 | 50 80 Average Speed 124 | 123 124 Slowest Speed 200 | 160 200 Overloaded Moves . | . . Propulsion Burnouts . | . . Robots Hopped . | . . Cave-ins Triggered . | . . Exploration Rate (%) 34 | 4 64 Regions Visited 1 Branch Regions . Pre-discovered Areas . | . . Known Exits Taken . | . . Unknown Exits Taken 1 | 1 . Scrap Searched . | . . Spaces Dug . | . . Terrain Destroyed 30 | . 30 Melee . | . . Projectile . | . . AOE 30 | . 30 Terrain Rammed . | . . Walls Destroyed . | . . Machines Disabled . | . . Actions | -11 -10 --------- Run | Scr Mat Total 514 | 70 444 Wait 25 | . 25 Move 385 | 53 332 Hop . | . . Pick Up 15 | 10 5 Fast Attach 3 | . 3 Attach 10 | 6 4 Detach . | . . Swap 1 | 1 . Drop 3 | . 3 Fire 72 | . 72 Melee . | . . Ram . | . . Kick . | . . Crush . | . . Escape Stasis . | . . Rewire . | . . Trap . | . . Miscellaneous . | . . Route ------- -11/Scrapyard -10/Materials (discovered 2 exits: [*Mat x2]) History --------- Turn | Location | Event 3 | -11/Scrapyard | Discovered new exit (range 15) 85 | -11/Scrapyard | Entered Materials 300 | -10/Materials | Build established: Mutant 369 | -10/Materials | Core integrity fell below 50% 464 | -10/Materials | Discovered new exit (range 16) 493 | -10/Materials | Lost 4 parts (1p2n1w) 653 | -10/Materials | Discovered new exit (range 6) 682 | -10/Materials | Core integrity fell below 20% 693 | -10/Materials | Destroyed self via exploding Fusion Modulator Last Messages --------------- 00498_ U-05 Engineer builds a Wall. 00498_ Acquired 59 matter. 00503_ U-05 Engineer lays Concrete. 00517_ U-05 Engineer builds a Wall. 00534_ K-01 Serf collects debris. 00653_ EXIT=FOUND 00663_ O-16 Technician: "IFF HANDSHAKE FAILED. SECURING TERMINAL." 00665_ O-16 Technician uses terminal to summon reinforcements. 00665_ ALERT: Hostiles spotted, dispatching reinforcements to Terminal M004. 00665_ O-16 Technician locks terminal. 00674_ Nuclear Reactor explodes. 00674_ Lgt. Assault Rifle destroyed. 00674_ Destroyed Lgt. Assault Rifle. 00674_ Ion Engine destroyed. 00674_ Destroyed Ion Engine. 00674_ Terminal disabled. 00675_ The unstable cave ceiling collapses. 00690_ G-34 Mercenary destroyed. 00692_ Acquired 47 matter. 00693_ Fusion Modulator explodes. Map ----- +----------------------------------------------------+ | ?????????????????????????????????? | | ?????????????????????????????????? | | ?????????????????????????????????? | | ?????????????????????????????????? | | ?????????????????????????????????? | | ?????????????????????????????????? | | ?????????????????????????????????? | | ?????????????????????????????????? | | ?????????????????????????????????? | | ????? ??????????????????????????? | | ????? ???????????T ???????????? | | ????? ??????????? ???????????? | | ????# ??????????? ???????????? | | ????# ??????????# #??????????? | | ????# ??????????# #??????????? | | ????# ??????????# #??????????? | | ????# #??????????# #??????????? | | ????# #??????????# #??????????? | | ????# #?????????? ??????????? | | ????# #??????????? ???????????? | | ????# #??????????? ???????????? | | ????# ####+####??? ???????????? | | ????# ## #??? ???????????? | | ????# ## #???# #???????????? | | ????# g/ #???# #???????????? | | ????# ##@= #???# #???????##### | | ?####+### #####+######??# | | ## # ## #??# ""= | | # ##+#### #??# "Y* | | # # #??# ""= | | # < + """ """ #??# | | # """ """ #??# " | | # ## # """ """ #??# " | | ## # #??# " | | ### # #??# | | # #?# #####+###########+ | | # """ #?# # = ## | | ## """ ###?# # ! ## | | ?# """ #???# ^ # ## | | ?# #???######## # ## | | ?##???###??????????# ###+#### | | ???????????????????# ## | | ???????????????????# ## | | ???????????????????# ## "" | | ???????????????????# ##!! T" | | ???????????????????# ##!! "" | | ???????????????????# ##!! | | ???????????????????# ## | | ???????????????????# ## | | ???????????????????# ## | +----------------------------------------------------+ Best States ------------- Heat Dissipation 25 Energy Generation 10 Energy Capacity 250 Matter Stores 300 Matter Capacity 300 Sight Range 16 Terrain Scan Density 10 Utility Shielding 33 Evasion (%) 50 Recoil Reduction 2 Item Schematics ----------------- None Robot Schematics ------------------ None Fabricated ------------ Nothing Alien Tech Used ----------------- None Achievements -------------- None Challenges ------------ None Game ------ Seed WaveInsulationMicrothruster Manual? 0 Play Time 00:08:17 Cumulative 185.6 hours Start 2021.08.17 @ 16:34:12 End 2021.08.17 @ 16:40:26 Sessions 1 Manual Loads 0 Difficulty Rogue Special Mode None Game No. 215 Rogue 107 Adventurer 62 Explorer 46 Win Type - Total 7 Types 6/0/1/0/0/0/0/0/0 Lore% 32 Gallery% 67 Achievement% 53 Wizard Run 0 Options --------- ASCII 0 Keyboard 0 Movement Mouse Keybinds 0 Fullscreen 1 Font 12/Smallcaps Map View 83x54 Tactical HUD 1 Map Filters NONE Filters NONE Steam 1 RUN: 3bba2bda-c0ca-441b-8ed1-1410fcd2c889